[Event "African Games-chT 2019"]
[Site "Casablanca"]
[Date "2019.08.24"]
[Round "3.11"]
[White "Marzouk, Amira"]
[Black "Ndirangu, Joyce Nyaruai"]
[Result "0-1"]
[ECO "A45"]
[WhiteElo "1698"]
[BlackElo "1662"]
[Annotator "NA"]
[PlyCount "140"]
[EventDate "2019.08.24"]
[EventType "team-tourn"]
[EventCountry "MAR"]
[SourceTitle "playchess.com"]
[Source "ChessBase"]
[SourceQuality "1"]
[WhiteTeam "Tunisia"]
[BlackTeam "Kenya"]
[WhiteTeamCountry "TUN"]
[BlackTeamCountry "KEN"]
[TimeControl "900+10"]

1. d4 {[%emt 0:00:00]} Nf6 {[%emt 0:00:00]} 2. Bf4 {[%emt 0:00:00]} e6 {[%emt 0:00:00]} 3. e3 {[%emt 0:00:00]} b6 {[%emt 0:00:06]} 4. Nf3 {[%emt 0:00:02]} Bb7 {[%emt 0:00:02]} 5. Nbd2 {[%emt 0:00:15]} c5 {[%emt 0:00:02]} 6. c3 {[%emt 0:00:02]} Nc6 {[%emt 0:00:14]} 7. Bd3 {[%emt 0:00:36]} Ne7 {[%emt 0:01:15]} 8. h3 {[%emt 0:00:29]} Ng6 {[%emt 0:00:04]} 9. Bh2 {[%emt 0:00:02]} Be7 {[%emt 0:00:53]} 10. O-O {[%emt 0:00:04]} O-O {[%emt 0:00:12]} 11. a4 {[%emt 0:00:25]} d5 {[%emt 0:00:14]} 12. Qe2 {[%emt 0:01:45]} Ne4 {[%emt 0:00:12]} 13. Ba6 {[%emt 0:00:17]} Bxa6 {[%emt 0:00:30]} 14. Qxa6 {[%emt 0:00:02]} Nxd2 {[%emt 0:00:06]} 15. Nxd2 {[%emt 0:00:02]} c4 {[%emt 0:00:01]} 16. a5 {[%emt 0:01:03]} Bd6 {[%emt 0:03:54]} 17. Bxd6 {[%emt 0:00:45]} Qxd6 {[%emt 0:00:01]} 18. axb6 {[%emt 0:00:02]} Qxb6 {[%emt 0:00:03]} 19. Rfb1 {[%emt 0:01:10]} Rfc8 {[%emt 0:00:29]} 20. b3 {[%emt 0:01:29]} cxb3 {[%emt 0:02:00]} 21. Rxb3 {[%emt 0:00:05]} Qc7 {[%emt 0:00:11]} 22. Ra5 {[%emt 0:01:03]} Rcb8 {[%emt 0:01:51]} 23. Rc5 {[%emt 0:01:00]} Qd7 {[%emt 0:00:38]} 24. Rxb8+ {[%emt 0:02:38]} Rxb8 {[%emt 0:00:19]} 25. c4 {[%emt 0:00:38]} dxc4 {[%emt 0:00:44]} 26. Nxc4 {[%emt 0:00:54]} h6 {[%emt 0:01:58]} 27. Qc6 {[%emt 0:03:50]} Rb1+ {[%emt 0:01:26]} 28. Kh2 {[%emt 0:00:03]} Qe7 {[%emt 0:00:07]} 29. Qc8+ {[%emt 0:00:09]} Kh7 {[%emt 0:00:09]} 30. Rc7 {[%emt 0:00:22]} Qf6 {[%emt 0:00:05]} 31. f3 {[%emt 0:00:26]} Nh4 {[%emt 0:00:33]} 32. Ne5 {[%emt 0:00:09]} Rb2 {[%emt 0:00:13]} 33. Rc2 {[%emt 0:00:23]} Rxc2 {[%emt 0:00:05]} 34. Qxc2+ g6 {[%emt 0:00:04]} 35. Qc7 {[%emt 0:00:13]} Kg7 {[%emt 0:00:04]} 36. Qxa7 {[%emt 0:00:04]} Nf5 {[%emt 0:00:01]} 37. Ng4 {[%emt 0:00:19]} Qh4 {[%emt 0:00:08]} 38. Qa2 {[%emt 0:00:10]} Qg3+ {[%emt 0:00:07]} 39. Kg1 {[%emt 0:00:04]} h5 {[%emt 0:00:03]} 40. Qf2 {[%emt 0:00:03]} hxg4 {[%emt 0:00:04]} 41. Qxg3 {[%emt 0:00:02]} Nxg3 {[%emt 0:00:01]} 42. hxg4 {[%emt 0:00:01]} Ne2+ {[%emt 0:00:04]} 43. Kf2 {[%emt 0:00:02]} Nc3 {[%emt 0:00:01]} 44. e4 {[%emt 0:00:09]} Kf6 {[%emt 0:00:03]} 45. Ke3 {[%emt 0:00:03]} g5 {[%emt 0:00:04]} 46. Kd3 {[%emt 0:00:04]} Nb5 {[%emt 0:00:08]} 47. Kc4 {[%emt 0:00:05]} Nc7 {[%emt 0:00:07]} 48. Kc5 {[%emt 0:00:07]} Ke7 {[%emt 0:00:01]} 49. g3 {[%emt 0:00:21]} f6 {[%emt 0:00:05]} 50. f4 {[%emt 0:00:08]} Ne8 {[%emt 0:00:08]} 51. fxg5 {[%emt 0:00:08]} fxg5 {[%emt 0:00:01]} 52. d5 {[%emt 0:00:04]} Nf6 {[%emt 0:00:15]} 53. d6+ {[%emt 0:00:27]} Kd7 {[%emt 0:00:00]} 54. e5 {[%emt 0:00:04]} Nxg4 {[%emt 0:00:02]} 55. Kd4 {[%emt 0:00:03]} Nh6 {[%emt 0:00:29]} 56. Ke4 {[%emt 0:00:08]} Nf7 {[%emt 0:00:13]} 57. Kd4 {[%emt 0:00:10]} Nd8 {[%emt 0:00:09]} 58. Ke4 {[%emt 0:00:04]} Nc6 {[%emt 0:00:03]} 59. g4 {[%emt 0:00:38]} Nb4 {[%emt 0:00:06]} 60. Kd4 {[%emt 0:00:07]} Nc2+ {[%emt 0:00:03]} 61. Ke4 {[%emt 0:00:10]} Ne1 {[%emt 0:00:03]} 62. Ke3 {[%emt 0:00:11]} Ng2+ {[%emt 0:00:24]} 63. Kf3 {[%emt 0:00:02]} Nh4+ {[%emt 0:00:02]} 64. Ke4 {[%emt 0:00:15]} Ng6 {[%emt 0:00:02]} 65. Kd4 {[%emt 0:00:05]} Nh8 {[%emt 0:00:11]} 66. Ke4 {[%emt 0:00:04]} Nf7 {[%emt 0:00:01]} 67. Kd4 {[%emt 0:00:02]} Nh6 {[%emt 0:00:21]} 68. Ke4 {[%emt 0:00:06]} Nxg4 {[%emt 0:00:01]} 69. Kf3 {[%emt 0:00:04]} Nxe5+ {[%emt 0:00:02]} 70. Ke4 {[%emt 0:00:01]} Kxd6 0-1

[Event "African Games-chT 2019"]
[Site "Casablanca"]
[Date "2019.08.24"]
[Round "3.12"]
[White "Mongeli, Sasha"]
[Black "Miladi, Amen"]
[Result "0-1"]
[ECO "B23"]
[WhiteElo "1527"]
[BlackElo "1811"]
[Annotator "NA"]
[PlyCount "60"]
[EventDate "2019.08.24"]
[EventType "team-tourn"]
[EventCountry "MAR"]
[SourceTitle "playchess.com"]
[Source "ChessBase"]
[SourceQuality "1"]
[WhiteTeam "Kenya"]
[BlackTeam "Tunisia"]
[WhiteTeamCountry "KEN"]
[BlackTeamCountry "TUN"]
[TimeControl "900+10"]

1. e4 {[%emt 0:00:00]} c5 {[%emt 0:00:00]} 2. Nc3 {[%emt 0:00:00]} a6 {[%emt 0:00:00]} 3. Nf3 {[%emt 0:00:00]} b5 {[%emt 0:00:00]} 4. d3 {[%emt 0:00:21]} Bb7 {[%emt 0:00:00]} 5. Bf4 {[%emt 0:00:16]} e6 {[%emt 0:00:15]} 6. a3 {[%emt 0:00:34]} Be7 {[%emt 0:00:06]} 7. Be2 {[%emt 0:00:18]} d5 {[%emt 0:00:20]} 8. exd5 {[%emt 0:00:23]} exd5 {[%emt 0:00:02]} 9. O-O {[%emt 0:00:11]} Nf6 {[%emt 0:00:01]} 10. Re1 {[%emt 0:00:17]} O-O {[%emt 0:00:03]} 11. Bg5 {[%emt 0:00:34]} h6 {[%emt 0:00:08]} 12. Bf4 {[%emt 0:00:27]} d4 {[%emt 0:00:11]} 13. Nb1 {[%emt 0:00:23]} Nd5 {[%emt 0:00:16]} 14. Bg3 {[%emt 0:00:28]} Bd6 {[%emt 0:00:36]} 15. Be5 {[%emt 0:01:20]} Re8 {[%emt 0:00:55]} 16. Bf1 {[%emt 0:00:19]} Bxe5 {[%emt 0:00:53]} 17. Nxe5 {[%emt 0:00:03]} Nd7 {[%emt 0:00:08]} 18. Nxd7 {[%emt 0:00:22]} Qxd7 {[%emt 0:00:00]} 19. Nd2 {[%emt 0:00:08]} Rxe1 {[%emt 0:00:08]} 20. Qxe1 {[%emt 0:00:00]} Re8 {[%emt 0:00:00]} 21. Qd1 {[%emt 0:00:00]} Nf4 {[%emt 0:00:00]} 22. Nf3 {[%emt 0:00:22]} Qg4 {[%emt 0:00:00]} 23. Kh1 {[%emt 0:02:28]} Nh3 {[%emt 0:00:00]} 24. Ne1 {[%emt 0:03:02]} Nxf2+ {[%emt 0:00:00]} 25. Kg1 {[%emt 0:00:01]} Nxd1 {[%emt 0:00:00]} 26. Nf3 {[%emt 0:00:41]} Bxf3 {[%emt 0:00:00]} 27. h3 {[%emt 0:01:20]} Qg6 {[%emt 0:00:00]} 28. Kh2 {[%emt 0:00:36]} Re2 {[%emt 0:00:07]} 29. Rxd1 {[%emt 0:01:18]} Rxg2+ {[%emt 0:00:04]} 30. Bxg2 {[%emt 0:00:27]} Qxg2# {[%emt 0:00:02]} 0-1

[Event "African Games-chT 2019"]
[Site "Casablanca"]
[Date "2019.08.24"]
[Round "3.13"]
[White "Chumfwa, Stanley"]
[Black "Makoto, Rodwell"]
[Result "0-1"]
[ECO "C60"]
[WhiteElo "2317"]
[BlackElo "2373"]
[Annotator "NA"]
[PlyCount "94"]
[EventDate "2019.08.24"]
[EventType "team-tourn"]
[EventCountry "MAR"]
[SourceTitle "playchess.com"]
[Source "ChessBase"]
[SourceQuality "1"]
[WhiteTeam "Zambia"]
[BlackTeam "Zimbabwe"]
[WhiteTeamCountry "ZAM"]
[BlackTeamCountry "ZIM"]
[TimeControl "900+10"]

1. e4 {[%emt 0:00:00]} e5 {[%emt 0:00:00]} 2. Nf3 {[%emt 0:00:00]} Nc6 {[%emt 0:00:00]} 3. Bb5 {[%emt 0:00:00]} g6 {[%emt 0:00:00]} 4. O-O {[%emt 0:00:16]} Bg7 {[%emt 0:00:00]} 5. c3 {[%emt 0:00:06]} a6 {[%emt 0:00:00]} 6. Ba4 {[%emt 0:00:08]} d6 {[%emt 0:00:00]} 7. h3 {[%emt 0:00:22]} Bd7 {[%emt 0:00:03]} 8. d4 {[%emt 0:00:09]} Nf6 {[%emt 0:00:16]} 9. Re1 {[%emt 0:00:28]} O-O {[%emt 0:00:12]} 10. dxe5 {[%emt 0:02:29]} dxe5 {[%emt 0:00:38]} 11. Nbd2 {[%emt 0:00:14]} Qe7 {[%emt 0:00:16]} 12. Qe2 {[%emt 0:02:14]} Nh5 {[%emt 0:00:26]} 13. Bc2 {[%emt 0:00:24]} Nf4 {[%emt 0:00:56]} 14. Qf1 {[%emt 0:00:01]} Rad8 {[%emt 0:00:38]} 15. Nb3 {[%emt 0:00:13]} Nb4 {[%emt 0:01:04]} 16. Bb1 Bb5 {[%emt 0:00:03]} 17. c4 {[%emt 0:01:01]} Ba4 {[%emt 0:00:25]} 18. Bxf4 {[%emt 0:01:24]} exf4 {[%emt 0:00:01]} 19. e5 {[%emt 0:00:01]} Nc6 {[%emt 0:01:25]} 20. Be4 {[%emt 0:00:53]} b6 {[%emt 0:02:36]} 21. Qe2 {[%emt 0:04:30]} Rfe8 {[%emt 0:00:48]} 22. c5 {[%emt 0:01:19]} Bb5 {[%emt 0:00:35]} 23. Qc2 {[%emt 0:00:01]} Nxe5 {[%emt 0:00:24]} 24. a4 {[%emt 0:00:16]} Nxf3+ {[%emt 0:00:07]} 25. Bxf3 {[%emt 0:01:14]} Qxe1+ 26. Rxe1 {[%emt 0:00:01]} Rxe1+ {[%emt 0:01:26]} 27. Kh2 {[%emt 0:00:01]} Bxa4 {[%emt 0:00:01]} 28. cxb6 {[%emt 0:00:01]} cxb6 {[%emt 0:00:01]} 29. Qc7 {[%emt 0:00:35]} Ree8 {[%emt 0:00:21]} 30. Na1 {[%emt 0:00:08]} Bxb2 {[%emt 0:00:24]} 31. Qxb6 {[%emt 0:01:24]} Bxa1 {[%emt 0:00:02]} 32. Qxa6 {[%emt 0:00:00]} Rd4 {[%emt 0:02:19]} 33. Bd5 {[%emt 0:00:02]} Bc3 {[%emt 0:00:53]} 34. Qb7 {[%emt 0:00:29]} Rf8 {[%emt 0:00:06]} 35. h4 {[%emt 0:00:01]} Be1 {[%emt 0:00:34]} 36. h5 {[%emt 0:00:08]} Bxf2 {[%emt 0:00:12]} 37. h6 {[%emt 0:00:13]} Bg3+ {[%emt 0:00:43]} 38. Kh3 {[%emt 0:00:01]} Rd3 {[%emt 0:00:00]} 39. Qb2 {[%emt 0:00:16]} Be1+ {[%emt 0:00:11]} 40. Bf3 {[%emt 0:00:06]} Bd7+ {[%emt 0:00:07]} 41. Kh2 {[%emt 0:00:06]} Bc3 {[%emt 0:00:03]} 42. Qe2 {[%emt 0:00:09]} Bf5 {[%emt 0:00:18]} 43. Qe7 {[%emt 0:00:11]} Rfd8 {[%emt 0:00:15]} 44. Qc7 {[%emt 0:00:06]} Bf6 {[%emt 0:00:59]} 45. Qxf4 {[%emt 0:00:26]} R3d4 {[%emt 0:00:02]} 46. Qc7 {[%emt 0:00:06]} Bg5 {[%emt 0:00:07]} 47. Qb7 Bxh6 {[%emt 0:00:06]} 0-1

[Event "African Games-chT 2019"]
[Site "Casablanca"]
[Date "2019.08.24"]
[Round "3.14"]
[White "Mushore, Emarald Takudzwa"]
[Black "Kayonde, Andrew"]
[Result "0-1"]
[ECO "B12"]
[WhiteElo "2198"]
[BlackElo "2384"]
[Annotator "NA"]
[PlyCount "92"]
[EventDate "2019.08.24"]
[EventType "team-tourn"]
[EventCountry "MAR"]
[SourceTitle "playchess.com"]
[Source "ChessBase"]
[SourceQuality "1"]
[WhiteTeam "Zimbabwe"]
[BlackTeam "Zambia"]
[WhiteTeamCountry "ZIM"]
[BlackTeamCountry "ZAM"]
[TimeControl "900+10"]

1. e4 {[%emt 0:00:00]} c6 {[%emt 0:00:00]} 2. d4 {[%emt 0:00:00]} d5 {[%emt 0:00:00]} 3. e5 {[%emt 0:00:00]} c5 {[%emt 0:00:00]} 4. Nf3 {[%emt 0:00:05]} cxd4 {[%emt 0:01:54]} 5. Qxd4 {[%emt 0:00:03]} Nc6 {[%emt 0:00:07]} 6. Bb5 {[%emt 0:00:09]} a6 {[%emt 0:00:48]} 7. Bxc6+ {[%emt 0:00:02]} bxc6 {[%emt 0:00:01]} 8. Nc3 {[%emt 0:00:03]} Bf5 {[%emt 0:00:05]} 9. Qa4 {[%emt 0:00:12]} Bd7 {[%emt 0:00:04]} 10. Qf4 {[%emt 0:00:37]} e6 {[%emt 0:00:09]} 11. O-O {[%emt 0:00:17]} Rb8 {[%emt 0:00:04]} 12. a3 {[%emt 0:00:15]} Nh6 {[%emt 0:00:45]} 13. b3 {[%emt 0:01:35]} Be7 {[%emt 0:00:15]} 14. Re1 {[%emt 0:00:49]} c5 {[%emt 0:00:53]} 15. Ne2 {[%emt 0:00:29]} O-O {[%emt 0:00:21]} 16. Qg3 {[%emt 0:00:20]} Nf5 {[%emt 0:00:10]} 17. Qh3 {[%emt 0:00:14]} a5 {[%emt 0:00:40]} 18. a4 {[%emt 0:01:13]} Rc8 {[%emt 0:00:37]} 19. Bd2 {[%emt 0:00:59]} c4 {[%emt 0:00:13]} 20. Ned4 {[%emt 0:02:15]} Nxd4 {[%emt 0:00:51]} 21. Nxd4 {[%emt 0:00:02]} cxb3 {[%emt 0:00:43]} 22. Qxb3 {[%emt 0:00:57]} Rc4 {[%emt 0:00:18]} 23. c3 {[%emt 0:00:31]} Qb8 {[%emt 0:01:38]} 24. Nb5 {[%emt 0:01:23]} Rfc8 {[%emt 0:00:22]} 25. g3 {[%emt 0:00:28]} h6 {[%emt 0:01:20]} 26. Qb1 {[%emt 0:01:12]} Bc5 {[%emt 0:00:33]} 27. Qb2 {[%emt 0:00:48]} Qb6 {[%emt 0:00:37]} 28. Be3 {[%emt 0:00:07]} Bxe3 {[%emt 0:00:15]} 29. Rxe3 {[%emt 0:00:02]} Rb8 {[%emt 0:00:03]} 30. Qa3 {[%emt 0:00:58]} Bxb5 {[%emt 0:00:37]} 31. axb5 {[%emt 0:00:01]} a4 {[%emt 0:00:09]} 32. Rb1 {[%emt 0:00:07]} Qa5 {[%emt 0:00:02]} 33. Qe7 {[%emt 0:01:10]} a3 {[%emt 0:00:27]} 34. Rf3 {[%emt 0:00:02]} Rc7 {[%emt 0:00:05]} 35. Qd6 {[%emt 0:00:21]} a2 {[%emt 0:00:54]} 36. Ra1 {[%emt 0:00:05]} Rxb5 {[%emt 0:02:30]} 37. Rxa2 {[%emt 0:01:41]} Rb1+ {[%emt 0:00:02]} 38. Kg2 {[%emt 0:00:01]} Qb5 {[%emt 0:00:01]} 39. Qa6 {[%emt 0:00:19]} Qxa6 40. Rxa6 {[%emt 0:00:01]} Rb3 {[%emt 0:00:06]} 41. Ra8+ {[%emt 0:00:05]} Kh7 {[%emt 0:00:01]} 42. Rf8 {[%emt 0:00:09]} Kg6 {[%emt 0:00:03]} 43. Rf4 {[%emt 0:00:02]} h5 {[%emt 0:00:54]} 44. c4 {[%emt 0:00:12]} dxc4 {[%emt 0:00:05]} 45. Ra8 {[%emt 0:01:52]} c3 {[%emt 0:00:04]} 46. Rf3 {[%emt 0:00:04]} Rb1 {[%emt 0:00:20]} 0-1

[Event "African Games-chT 2019"]
[Site "Casablanca"]
[Date "2019.08.24"]
[Round "3.15"]
[White "Mwango, Lorita"]
[Black "Shaba, Linda"]
[Result "0-1"]
[ECO "A40"]
[WhiteElo "1947"]
[BlackElo "1615"]
[Annotator "NA"]
[PlyCount "140"]
[EventDate "2019.08.24"]
[EventType "team-tourn"]
[EventCountry "MAR"]
[SourceTitle "playchess.com"]
[Source "ChessBase"]
[SourceQuality "1"]
[WhiteTeam "Zambia"]
[BlackTeam "Zimbabwe"]
[WhiteTeamCountry "ZAM"]
[BlackTeamCountry "ZIM"]
[TimeControl "900+10"]

1. d4 {[%emt 0:00:00]} e6 {[%emt 0:00:00]} 2. Nf3 {[%emt 0:00:00]} Nf6 {[%emt 0:00:00]} 3. Bf4 {[%emt 0:00:12]} d5 {[%emt 0:00:12]} 4. e3 {[%emt 0:00:03]} c5 {[%emt 0:00:11]} 5. c3 {[%emt 0:00:39]} Nc6 {[%emt 0:00:11]} 6. Be2 {[%emt 0:00:02]} Be7 {[%emt 0:00:19]} 7. O-O {[%emt 0:00:03]} Nh5 {[%emt 0:00:21]} 8. Bg3 {[%emt 0:00:20]} Nxg3 {[%emt 0:00:33]} 9. hxg3 {[%emt 0:00:02]} O-O {[%emt 0:00:02]} 10. Nbd2 {[%emt 0:00:01]} Bd7 {[%emt 0:00:28]} 11. Rc1 {[%emt 0:00:06]} c4 {[%emt 0:00:07]} 12. e4 {[%emt 0:00:33]} a6 {[%emt 0:01:00]} 13. Qc2 {[%emt 0:00:14]} Rc8 {[%emt 0:00:27]} 14. Kh2 {[%emt 0:01:27]} f5 {[%emt 0:00:20]} 15. exd5 {[%emt 0:00:09]} exd5 {[%emt 0:00:04]} 16. Rh1 {[%emt 0:00:03]} f4 {[%emt 0:00:49]} 17. gxf4 {[%emt 0:00:51]} Rxf4 {[%emt 0:00:07]} 18. Kg1 {[%emt 0:00:05]} Bf5 {[%emt 0:00:10]} 19. Qd1 {[%emt 0:00:15]} Bg6 {[%emt 0:00:15]} 20. g3 {[%emt 0:00:07]} Rf7 {[%emt 0:00:31]} 21. Nh4 {[%emt 0:00:13]} Bxh4 {[%emt 0:00:04]} 22. Rxh4 {[%emt 0:00:03]} Qf6 {[%emt 0:01:08]} 23. Rh2 {[%emt 0:00:38]} Rcf8 {[%emt 0:00:52]} 24. Nf3 {[%emt 0:00:06]} Be4 {[%emt 0:00:51]} 25. Nd2 {[%emt 0:00:30]} Bg6 {[%emt 0:01:27]} 26. Nf1 {[%emt 0:01:28]} Ne7 {[%emt 0:02:06]} 27. Ne3 {[%emt 0:00:08]} Qd6 {[%emt 0:00:15]} 28. Ng4 {[%emt 0:01:23]} Nc6 {[%emt 0:02:58]} 29. Qd2 {[%emt 0:00:50]} Bf5 {[%emt 0:00:57]} 30. Qg5 {[%emt 0:02:49]} Qg6 {[%emt 0:01:25]} 31. Qxg6 {[%emt 0:01:31]} Bxg6 {[%emt 0:00:01]} 32. Ne5 {[%emt 0:00:36]} Nxe5 {[%emt 0:01:11]} 33. dxe5 {[%emt 0:00:02]} Be4 {[%emt 0:00:06]} 34. f4 {[%emt 0:00:48]} g5 {[%emt 0:00:03]} 35. Bh5 {[%emt 0:00:02]} Rg7 {[%emt 0:00:15]} 36. e6 {[%emt 0:02:03]} gxf4 {[%emt 0:00:06]} 37. Bf7+ {[%emt 0:00:34]} Rfxf7 {[%emt 0:00:02]} 38. exf7+ {[%emt 0:00:01]} Kxf7 {[%emt 0:00:08]} 39. Rh3 {[%emt 0:00:32]} Rxg3+ {[%emt 0:00:28]} 40. Rxg3 {[%emt 0:00:06]} fxg3 {[%emt 0:00:01]} 41. Rf1+ {[%emt 0:00:14]} Ke6 {[%emt 0:00:16]} 42. Rf8 {[%emt 0:00:23]} Ke5 {[%emt 0:00:06]} 43. Rf7 {[%emt 0:00:19]} h5 {[%emt 0:00:49]} 44. Rg7 {[%emt 0:00:30]} Kf4 {[%emt 0:00:16]} 45. Rxb7 {[%emt 0:00:24]} h4 {[%emt 0:00:01]} 46. Rf7+ {[%emt 0:00:24]} Ke3 {[%emt 0:00:04]} 47. Rg7 {[%emt 0:00:22]} Kf3 {[%emt 0:00:24]} 48. Rf7+ {[%emt 0:00:14]} Ke2 {[%emt 0:00:04]} 49. Rg7 {[%emt 0:00:34]} Ke3 {[%emt 0:00:19]} 50. Rg4 {[%emt 0:00:02]} g2 {[%emt 0:00:06]} 51. Rxh4 {[%emt 0:00:01]} Kd2 {[%emt 0:00:01]} 52. Rf4 {[%emt 0:00:10]} Kc2 {[%emt 0:00:04]} 53. Rf2+ {[%emt 0:00:02]} Kb1 {[%emt 0:00:01]} 54. a3 {[%emt 0:00:02]} Ka2 {[%emt 0:00:02]} 55. Rd2 {[%emt 0:00:06]} a5 {[%emt 0:00:03]} 56. Kf2 {[%emt 0:00:01]} a4 {[%emt 0:00:04]} 57. Kg1 {[%emt 0:00:05]} Kb3 {[%emt 0:00:02]} 58. Kf2 {[%emt 0:00:08]} Bc2 {[%emt 0:00:04]} 59. Kxg2 {[%emt 0:00:14]} Kxb2 {[%emt 0:00:02]} 60. Kf2 {[%emt 0:00:01]} Kxa3 {[%emt 0:00:08]} 61. Rxd5 {[%emt 0:00:02]} Kb3 {[%emt 0:00:01]} 62. Ra5 {[%emt 0:00:03]} Kxc3 {[%emt 0:00:04]} 63. Ke3 {[%emt 0:00:01]} Bb3 {[%emt 0:00:20]} 64. Ra7 {[%emt 0:00:06]} Kb2 {[%emt 0:00:02]} 65. Rc7 {[%emt 0:01:07]} a3 {[%emt 0:00:04]} 66. Kd4 {[%emt 0:00:15]} a2 {[%emt 0:00:04]} 67. Ra7 {[%emt 0:00:10]} a1=Q {[%emt 0:00:30]} 68. Rxa1 {[%emt 0:00:10]} Kxa1 {[%emt 0:00:03]} 69. Kc3 {[%emt 0:00:22]} Kb1 {[%emt 0:00:02]} 70. Kd2 {[%emt 0:00:18]} Kb2 {[%emt 0:00:01]} 0-1

[Event "African Games-chT 2019"]
[Site "Casablanca"]
[Date "2019.08.24"]
[Round "3.16"]
[White "Wakuruwarewa, Colletta"]
[Black "Mululu Linah"]
[Result "0-1"]
[ECO "B43"]
[WhiteElo "1587"]
[BlackElo "1633"]
[Annotator "NA"]
[PlyCount "88"]
[EventDate "2019.08.24"]
[EventType "team-tourn"]
[EventCountry "MAR"]
[SourceTitle "playchess.com"]
[Source "ChessBase"]
[SourceQuality "1"]
[WhiteTeam "Zimbabwe"]
[BlackTeam "Zambia"]
[WhiteTeamCountry "ZIM"]
[BlackTeamCountry "ZAM"]
[TimeControl "900+10"]

1. e4 {[%emt 0:00:00]} c5 {[%emt 0:00:00]} 2. Nf3 {[%emt 0:00:00]} e6 {[%emt 0:00:00]} 3. Nc3 {[%emt 0:00:06]} a6 {[%emt 0:00:01]} 4. d4 {[%emt 0:00:05]} cxd4 {[%emt 0:00:03]} 5. Nxd4 {[%emt 0:00:02]} Qc7 {[%emt 0:00:31]} 6. Bd3 {[%emt 0:00:37]} Nf6 {[%emt 0:00:27]} 7. h3 {[%emt 0:00:05]} Nc6 {[%emt 0:00:14]} 8. Nf3 {[%emt 0:00:53]} d6 {[%emt 0:00:36]} 9. O-O {[%emt 0:00:05]} Be7 {[%emt 0:00:01]} 10. a3 {[%emt 0:00:11]} b5 {[%emt 0:00:05]} 11. Re1 {[%emt 0:00:26]} Bb7 {[%emt 0:00:02]} 12. Bf4 {[%emt 0:00:38]} Nd7 {[%emt 0:00:58]} 13. Ne2 {[%emt 0:00:55]} Rd8 {[%emt 0:00:30]} 14. Rc1 {[%emt 0:00:12]} O-O {[%emt 0:00:27]} 15. Ng3 {[%emt 0:00:20]} Nde5 {[%emt 0:01:01]} 16. c3 {[%emt 0:01:03]} Nxd3 {[%emt 0:00:19]} 17. Qxd3 {[%emt 0:00:06]} Ne5 {[%emt 0:00:07]} 18. Qe2 {[%emt 0:00:55]} Ng6 {[%emt 0:00:29]} 19. Be3 {[%emt 0:00:25]} d5 {[%emt 0:00:20]} 20. exd5 {[%emt 0:00:17]} Bxd5 {[%emt 0:00:11]} 21. Nd4 {[%emt 0:01:30]} Nf4 {[%emt 0:00:25]} 22. Bxf4 {[%emt 0:00:12]} Qxf4 {[%emt 0:00:02]} 23. Rcd1 Bh4 {[%emt 0:01:17]} 24. Nh1 {[%emt 0:04:01]} Bf6 {[%emt 0:00:51]} 25. Qe3 {[%emt 0:00:34]} Qh4 {[%emt 0:00:52]} 26. Nf3 {[%emt 0:00:40]} Qh5 {[%emt 0:01:13]} 27. Ng3 {[%emt 0:00:12]} Qg6 {[%emt 0:00:17]} 28. Qd3 {[%emt 0:01:13]} Bxf3 {[%emt 0:01:51]} 29. Qxf3 {[%emt 0:00:17]} Qc2 {[%emt 0:00:31]} 30. Qe2 {[%emt 0:00:26]} Qg6 {[%emt 0:00:45]} 31. Ne4 {[%emt 0:00:18]} Be5 {[%emt 0:01:11]} 32. Nc5 {[%emt 0:00:08]} Bc7 {[%emt 0:01:53]} 33. Nxa6 {[%emt 0:00:07]} Rxd1 {[%emt 0:00:42]} 34. Rxd1 {[%emt 0:00:09]} Bf4 {[%emt 0:00:57]} 35. Qxb5 {[%emt 0:00:44]} Qc2 {[%emt 0:00:03]} 36. Rf1 {[%emt 0:00:01]} h6 {[%emt 0:00:05]} 37. Qc4 {[%emt 0:01:19]} e5 {[%emt 0:00:24]} 38. b4 {[%emt 0:00:22]} Rd8 {[%emt 0:00:04]} 39. Nc5 {[%emt 0:00:15]} Rd2 {[%emt 0:00:35]} 40. Qb3 {[%emt 0:00:57]} Qf5 {[%emt 0:00:29]} 41. a4 {[%emt 0:00:18]} e4 {[%emt 0:00:15]} 42. a5 {[%emt 0:00:39]} e3 {[%emt 0:00:07]} 43. fxe3 {[%emt 0:00:08]} Bxe3+ {[%emt 0:00:02]} 44. Kh2 {[%emt 0:00:03]} Qxf1 0-1